[Event "ONJK-FGH 2019"]
[Site "Borne"]
[Date "2019.08.13"]
[Round "1.1"]
[White "Vijver, Jonathan"]
[Black "Londers, Tuur"]
[Result "1-0"]
[ECO "C56"]
[WhiteElo "999"]
[BlackElo "500"]
[Annotator "NA"]
[PlyCount "91"]
[EventDate "2019.08.05"]
[EventType "swiss"]
[EventCountry "NED"]
[TimeControl "1500+10"]

1. e4 {[%emt 0:00:00]} e5 {[%emt 0:00:00]} 2. Nf3 {[%emt 0:00:00]} Nc6 {[%emt 0:00:00]} 3. d4 {[%emt 0:00:05]} exd4 {[%emt 0:00:25]} 4. Bc4 {[%emt 0:00:16]} Nf6 {[%emt 0:00:37]} 5. e5 {[%emt 0:00:33]} Ne4 {[%emt 0:00:36]} 6. Nxd4 {[%emt 0:02:19]} Nxe5 {[%emt 0:00:07]} 7. Qe2 {[%emt 0:00:55]} d5 {[%emt 0:00:25]} 8. Bd3 {[%emt 0:00:36]} Bc5 {[%emt 0:00:03]} 9. Be3 {[%emt 0:01:31]} Bg4 {[%emt 0:00:12]} 10. f3 {[%emt 0:00:27]} Bf5 {[%emt 0:00:18]} 11. Nxf5 {[%emt 0:00:43]} d4 {[%emt 0:02:15]} 12. Bxe4 {[%emt 0:01:12]} dxe3 {[%emt 0:00:57]} 13. Qb5+ {[%emt 0:00:00]} Nd7 {[%emt 0:00:09]} 14. Qc4 {[%emt 0:02:06]} Qg5 {[%emt 0:00:54]} 15. Qc3 {[%emt 0:02:36]} Qxg2 {[%emt 0:00:33]} 16. Nxg7+ {[%emt 0:02:22]} Kf8 {[%emt 0:00:28]} 17. Ne6+ {[%emt 0:00:10]} Kg8 {[%emt 0:01:55]} 18. Qg7+ {[%emt 0:00:48]} Qxg7 {[%emt 0:00:13]} 19. Nxg7 {[%emt 0:00:07]} Kxg7 {[%emt 0:00:09]} 20. Rg1+ {[%emt 0:00:26]} Kf6 {[%emt 0:01:13]} 21. Nc3 {[%emt 0:00:40]} Bb4 {[%emt 0:00:04]} 22. Bxb7 {[%emt 0:00:36]} Bxc3+ {[%emt 0:00:25]} 23. bxc3 {[%emt 0:00:15]} Rab8 {[%emt 0:00:07]} 24. O-O-O {[%emt 0:00:35]} Nc5 {[%emt 0:01:12]} 25. Be4 {[%emt 0:00:00]} Nxe4 {[%emt 0:00:17]} 26. fxe4 {[%emt 0:00:00]} Ke5 {[%emt 0:00:09]} 27. Rd7 {[%emt 0:01:40]} Kxe4 {[%emt 0:00:33]} 28. Rxf7 {[%emt 0:00:29]} Rbe8 {[%emt 0:00:18]} 29. Kd1 {[%emt 0:00:46]} Kd5 {[%emt 0:00:01]} 30. Ke2 {[%emt 0:00:31]} Kc4 {[%emt 0:00:16]} 31. Rxc7+ {[%emt 0:00:06]} Kd5 {[%emt 0:00:55]} 32. Rxa7 {[%emt 0:00:10]} Rhf8 {[%emt 0:01:00]} 33. Rf1 {[%emt 0:00:12]} Rg8 {[%emt 0:01:27]} 34. Rxh7 {[%emt 0:00:57]} Rg2+ {[%emt 0:00:02]} 35. Ke1 {[%emt 0:00:12]} e2 {[%emt 0:00:44]} 36. Rh1 {[%emt 0:00:19]} Rc8 {[%emt 0:00:30]} 37. Rh3 {[%emt 0:00:32]} Ra8 {[%emt 0:00:19]} 38. Rg3 {[%emt 0:00:12]} Rxg3 {[%emt 0:00:22]} 39. hxg3 {[%emt 0:00:11]} Rxa2 {[%emt 0:00:50]} 40. Kxe2 {[%emt 0:00:15]} Rxc2+ {[%emt 0:00:18]} 41. Kd3 {[%emt 0:00:06]} Rg2 {[%emt 0:00:57]} 42. Rh3 {[%emt 0:00:31]} Ke5 {[%emt 0:00:15]} 43. c4 {[%emt 0:00:16]} Kf5 {[%emt 0:00:23]} 44. Kd4 {[%emt 0:00:21]} Kg4 {[%emt 0:00:17]} 45. Rh8 {[%emt 0:00:07]} Rxg3 {[%emt 0:00:26]} 46. Rg8+ {[%emt 0:00:00]} 1-0

[Event "ONJK-FGH 2019"]
[Site "Borne"]
[Date "2019.08.13"]
[Round "1.2"]
[White "Feenstra, Bram"]
[Black "Kurt, Sascha"]
[Result "0-1"]
[ECO "D01"]
[WhiteElo "485"]
[BlackElo "984"]
[Annotator "NA"]
[PlyCount "120"]
[EventDate "2019.08.05"]
[EventType "swiss"]
[EventCountry "NED"]
[TimeControl "1500+10"]

1. d4 {[%emt 0:00:00]} d5 {[%emt 0:00:00]} 2. Nf3 {[%emt 0:00:06]} Nf6 {[%emt 0:00:25]} 3. Nc3 {[%emt 0:00:15]} e6 {[%emt 0:00:14]} 4. Bg5 {[%emt 0:00:14]} Nbd7 {[%emt 0:00:23]} 5. Bxf6 {[%emt 0:00:16]} Nxf6 {[%emt 0:00:09]} 6. g3 {[%emt 0:00:21]} b6 {[%emt 0:00:50]} 7. e3 {[%emt 0:00:16]} Bb7 {[%emt 0:00:24]} 8. Bb5+ {[%emt 0:00:17]} c6 {[%emt 0:00:32]} 9. Bd3 {[%emt 0:00:14]} Be7 {[%emt 0:00:29]} 10. O-O {[%emt 0:00:26]} O-O {[%emt 0:00:09]} 11. h4 {[%emt 0:00:19]} Qd7 {[%emt 0:01:02]} 12. Ne5 {[%emt 0:00:25]} Qc7 {[%emt 0:00:34]} 13. g4 {[%emt 0:00:33]} Nd7 {[%emt 0:01:34]} 14. Nxd7 {[%emt 0:00:23]} Qxd7 {[%emt 0:00:18]} 15. g5 {[%emt 0:00:27]} g6 {[%emt 0:00:38]} 16. h5 {[%emt 0:00:21]} Bxg5 {[%emt 0:00:34]} 17. f4 {[%emt 0:00:30]} Bf6 {[%emt 0:00:32]} 18. hxg6 {[%emt 0:00:29]} fxg6 {[%emt 0:00:13]} 19. Qg4 {[%emt 0:00:31]} Qg7 {[%emt 0:01:04]} 20. Qxe6+ {[%emt 0:00:45]} Qf7 {[%emt 0:00:39]} 21. Qxf7+ {[%emt 0:00:21]} Rxf7 {[%emt 0:00:11]} 22. e4 {[%emt 0:00:27]} Bxd4+ {[%emt 0:00:19]} 23. Kg2 {[%emt 0:00:23]} Bxc3 {[%emt 0:00:26]} 24. bxc3 {[%emt 0:00:53]} Raf8 {[%emt 0:00:00]} 25. f5 {[%emt 0:00:19]} gxf5 {[%emt 0:00:36]} 26. exf5 {[%emt 0:00:16]} Bc8 {[%emt 0:00:07]} 27. c4 {[%emt 0:00:22]} Bxf5 {[%emt 0:00:11]} 28. Bxf5 {[%emt 0:00:41]} Rxf5 {[%emt 0:00:04]} 29. cxd5 {[%emt 0:00:18]} Rxf1 {[%emt 0:00:03]} 30. Rxf1 {[%emt 0:00:02]} Rxf1 {[%emt 0:00:03]} 31. Kxf1 {[%emt 0:00:03]} cxd5 {[%emt 0:00:00]} 32. Kf2 {[%emt 0:00:07]} Kf7 {[%emt 0:00:01]} 33. c3 {[%emt 0:00:05]} Ke6 {[%emt 0:00:02]} 34. Ke3 {[%emt 0:00:06]} Ke5 {[%emt 0:00:00]} 35. a3 {[%emt 0:00:03]} h5 {[%emt 0:00:02]} 36. Kf2 {[%emt 0:00:07]} Kf4 {[%emt 0:00:00]} 37. Kg2 {[%emt 0:00:01]} Kg4 {[%emt 0:00:01]} 38. Kh2 {[%emt 0:00:04]} Kf3 {[%emt 0:00:02]} 39. Kh3 {[%emt 0:00:02]} Ke3 {[%emt 0:00:01]} 40. Kh4 {[%emt 0:00:02]} Kd3 {[%emt 0:00:00]} 41. Kxh5 {[%emt 0:00:02]} Kxc3 {[%emt 0:00:01]} 42. Kg4 {[%emt 0:00:01]} d4 {[%emt 0:00:03]} 43. Kf3 {[%emt 0:00:01]} d3 {[%emt 0:00:00]} 44. Kf2 {[%emt 0:00:02]} d2 {[%emt 0:00:01]} 45. Ke2 {[%emt 0:00:01]} Kc2 {[%emt 0:00:01]} 46. Ke3 {[%emt 0:00:01]} d1=Q {[%emt 0:00:04]} 47. Ke4 {[%emt 0:00:06]} Qd3+ {[%emt 0:00:00]} 48. Ke5 {[%emt 0:00:02]} Kc3 {[%emt 0:00:01]} 49. Ke6 {[%emt 0:00:06]} Qd4 {[%emt 0:00:01]} 50. Ke7 {[%emt 0:00:01]} Qd5 {[%emt 0:00:02]} 51. Ke8 {[%emt 0:00:04]} Qd6 {[%emt 0:00:02]} 52. Kf7 {[%emt 0:00:03]} Qe5 {[%emt 0:00:01]} 53. Kf8 {[%emt 0:00:02]} Qe6 {[%emt 0:00:01]} 54. Kg7 {[%emt 0:00:02]} Qf5 {[%emt 0:00:01]} 55. Kg8 {[%emt 0:00:01]} Qf6 {[%emt 0:00:02]} 56. Kh7 {[%emt 0:00:01]} Qg5 {[%emt 0:00:01]} 57. Kh8 {[%emt 0:00:02]} Kd4 {[%emt 0:00:01]} 58. a4 {[%emt 0:00:14]} Ke5 {[%emt 0:00:03]} 59. a5 {[%emt 0:00:03]} Kf6 {[%emt 0:00:03]} 60. axb6 {[%emt 0:00:05]} Qg7# {[%emt 0:00:02]} 0-1

[Event "ONJK-FGH 2019"]
[Site "Borne"]
[Date "2019.08.13"]
[Round "1.3"]
[White "Terlouw, Wouter"]
[Black "Fallaux, Bram"]
[Result "1-0"]
[ECO "D24"]
[WhiteElo "1159"]
[BlackElo "253"]
[Annotator "NA"]
[PlyCount "37"]
[EventDate "2019.08.05"]
[EventType "swiss"]
[EventCountry "NED"]
[TimeControl "1500+10"]

1. d4 {[%emt 0:00:00]} d5 {[%emt 0:00:00]} 2. c4 {[%emt 0:00:00]} dxc4 {[%emt 0:00:00]} 3. e3 {[%emt 0:00:00]} Bf5 {[%emt 0:00:00]} 4. Bxc4 {[%emt 0:00:00]} Nf6 {[%emt 0:00:00]} 5. Nc3 {[%emt 0:00:00]} e6 {[%emt 0:00:01]} 6. Nf3 {[%emt 0:00:01]} Bd6 {[%emt 0:00:02]} 7. Qb3 {[%emt 0:00:21]} O-O {[%emt 0:00:02]} 8. Qxb7 {[%emt 0:00:05]} Nbd7 {[%emt 0:00:04]} 9. Qb3 {[%emt 0:00:22]} Rb8 {[%emt 0:00:01]} 10. Qd1 {[%emt 0:00:02]} Be4 {[%emt 0:00:11]} 11. O-O {[%emt 0:00:09]} Bxf3 {[%emt 0:00:03]} 12. Qxf3 {[%emt 0:00:04]} h6 {[%emt 0:00:03]} 13. e4 {[%emt 0:00:28]} Bb4 {[%emt 0:00:01]} 14. Bd2 {[%emt 0:00:16]} Bxc3 {[%emt 0:00:03]} 15. Bxc3 {[%emt 0:00:02]} Rc8 {[%emt 0:00:17]} 16. Qg3 {[%emt 0:00:59]} Qe7 {[%emt 0:00:03]} 17. d5 {[%emt 0:00:27]} exd5 {[%emt 0:00:13]} 18. Bxd5 {[%emt 0:00:11]} Nxd5 {[%emt 0:00:04]} 19. Qxg7# {[%emt 0:00:03]} 1-0

[Event "ONJK-FGH 2019"]
[Site "Borne"]
[Date "2019.08.13"]
[Round "1.4"]
[White "Hemmink, Noa"]
[Black "Gang, Kevin"]
[Result "0-1"]
[ECO "C48"]
[WhiteElo "236"]
[BlackElo "827"]
[Annotator "NA"]
[PlyCount "60"]
[EventDate "2019.08.05"]
[EventType "swiss"]
[EventCountry "NED"]
[TimeControl "1500+10"]

1. e4 {[%emt 0:00:00]} e5 {[%emt 0:00:00]} 2. Nf3 {[%emt 0:00:00]} Nc6 {[%emt 0:00:13]} 3. Bb5 {[%emt 0:00:09]} d6 {[%emt 0:00:13]} 4. Bxc6+ {[%emt 0:00:02]} bxc6 {[%emt 0:00:26]} 5. O-O {[%emt 0:00:05]} Nf6 {[%emt 0:00:27]} 6. Re1 {[%emt 0:00:07]} Be7 {[%emt 0:00:30]} 7. Nc3 {[%emt 0:00:11]} O-O {[%emt 0:00:22]} 8. d3 {[%emt 0:00:53]} Bg4 {[%emt 0:00:01]} 9. Bg5 {[%emt 0:00:04]} h6 {[%emt 0:00:31]} 10. Bxf6 {[%emt 0:00:03]} Bxf6 {[%emt 0:00:24]} 11. h3 {[%emt 0:00:14]} Bxf3 {[%emt 0:00:13]} 12. Qxf3 {[%emt 0:00:27]} Qd7 {[%emt 0:00:06]} 13. Rad1 {[%emt 0:00:31]} Rfe8 {[%emt 0:00:17]} 14. Qh5 {[%emt 0:00:23]} Rad8 {[%emt 0:00:26]} 15. Re3 {[%emt 0:00:07]} Bg5 {[%emt 0:00:45]} 16. Rg3 {[%emt 0:00:34]} g6 {[%emt 0:00:31]} 17. Qf3 {[%emt 0:00:03]} Re6 {[%emt 0:00:22]} 18. Re1 {[%emt 0:01:35]} Rf6 {[%emt 0:00:28]} 19. Qe2 {[%emt 0:00:09]} d5 {[%emt 0:00:07]} 20. exd5 {[%emt 0:00:05]} cxd5 {[%emt 0:00:27]} 21. Qxe5 {[%emt 0:00:12]} d4 {[%emt 0:00:14]} 22. Nd5 {[%emt 0:00:10]} Qxd5 {[%emt 0:00:22]} 23. Qe2 {[%emt 0:00:06]} Re6 {[%emt 0:00:16]} 24. Qd1 {[%emt 0:00:08]} Rxe1+ {[%emt 0:00:03]} 25. Qxe1 {[%emt 0:00:10]} Qxa2 {[%emt 0:00:10]} 26. c4 {[%emt 0:00:09]} dxc3 {[%emt 0:00:07]} 27. bxc3 {[%emt 0:00:03]} Rb8 {[%emt 0:00:10]} 28. Rf3 {[%emt 0:00:06]} Rb1 {[%emt 0:00:03]} 29. Kf1 {[%emt 0:00:02]} Bd2 {[%emt 0:00:05]} 30. Rf6 {[%emt 0:01:29]} Rxe1# {[%emt 0:00:25]} 0-1

[Event "ONJK-FGH 2019"]
[Site "Borne"]
[Date "2019.08.13"]
[Round "1.5"]
[White "Thijssen, Freek"]
[Black "Ho, Alex"]
[Result "1-0"]
[ECO "C54"]
[WhiteElo "702"]
[BlackElo "332"]
[Annotator "NA"]
[PlyCount "85"]
[EventDate "2019.08.05"]
[EventType "swiss"]
[EventCountry "NED"]
[TimeControl "1500+10"]

1. e4 {[%emt 0:00:00]} e5 {[%emt 0:00:00]} 2. Nf3 {[%emt 0:00:03]} Nc6 {[%emt 0:00:00]} 3. Bc4 {[%emt 0:00:00]} Bc5 {[%emt 0:00:00]} 4. c3 {[%emt 0:00:00]} Nf6 {[%emt 0:00:03]} 5. Ng5 {[%emt 0:00:00]} d5 {[%emt 0:00:28]} 6. exd5 {[%emt 0:00:03]} Nd7 {[%emt 0:00:30]} 7. d3 {[%emt 0:00:12]} O-O {[%emt 0:00:12]} 8. dxc6 {[%emt 0:00:02]} bxc6 {[%emt 0:00:05]} 9. Qf3 {[%emt 0:00:09]} Nf6 {[%emt 0:00:50]} 10. O-O {[%emt 0:00:24]} Bg4 {[%emt 0:00:11]} 11. Qxc6 {[%emt 0:00:07]} Be2 {[%emt 0:00:49]} 12. Re1 {[%emt 0:00:10]} Bg4 {[%emt 0:00:07]} 13. Rxe5 {[%emt 0:00:09]} Qd6 {[%emt 0:00:33]} 14. Qxd6 {[%emt 0:00:22]} cxd6 {[%emt 0:00:01]} 15. Re7 {[%emt 0:00:19]} d5 {[%emt 0:00:12]} 16. Rc7 {[%emt 0:00:05]} dxc4 {[%emt 0:00:04]} 17. Rxc5 {[%emt 0:00:07]} cxd3 {[%emt 0:00:02]} 18. Bd2 {[%emt 0:00:04]} Rae8 {[%emt 0:00:16]} 19. Rc4 {[%emt 0:00:05]} Ne4 {[%emt 0:00:06]} 20. Nxe4 {[%emt 0:00:04]} f5 {[%emt 0:00:30]} 21. Nd6 {[%emt 0:00:16]} Re2 {[%emt 0:00:11]} 22. Rd4 {[%emt 0:00:00]} Rd8 {[%emt 0:00:29]} 23. Nxf5 {[%emt 0:00:14]} Rxd4 {[%emt 0:00:10]} 24. Nxd4 {[%emt 0:00:01]} Re8 {[%emt 0:00:22]} 25. b4 {[%emt 0:00:14]} Bc8 {[%emt 0:00:11]} 26. c4 {[%emt 0:00:02]} Ba6 {[%emt 0:00:08]} 27. b5 {[%emt 0:00:03]} Bb7 {[%emt 0:00:04]} 28. c5 {[%emt 0:00:02]} Rd8 {[%emt 0:00:11]} 29. c6 {[%emt 0:00:05]} Bc8 {[%emt 0:00:05]} 30. Nf3 {[%emt 0:00:10]} a6 {[%emt 0:00:13]} 31. b6 {[%emt 0:00:03]} Rd6 {[%emt 0:00:20]} 32. b7 {[%emt 0:00:03]} Rd8 {[%emt 0:00:05]} 33. b8=Q {[%emt 0:00:05]} Rf8 {[%emt 0:00:22]} 34. Bb4 {[%emt 0:00:13]} Re8 {[%emt 0:00:10]} 35. Qd6 {[%emt 0:00:13]} h6 {[%emt 0:00:13]} 36. Qd5+ {[%emt 0:00:14]} Kh8 {[%emt 0:00:04]} 37. Qxd3 {[%emt 0:00:08]} Bf5 {[%emt 0:00:15]} 38. Qxf5 {[%emt 0:00:03]} Rd8 {[%emt 0:00:19]} 39. Nc3 {[%emt 0:00:07]} Re8 {[%emt 0:00:09]} 40. c7 {[%emt 0:00:04]} Rg8 {[%emt 0:00:09]} 41. c8=R {[%emt 0:00:13]} a5 {[%emt 0:00:14]} 42. Ng5 {[%emt 0:00:35]} hxg5 {[%emt 0:00:00]} 43. Qh3# {[%emt 0:00:16]} 1-0

[Event "ONJK-FGH 2019"]
[Site "Borne"]
[Date "2019.08.13"]
[Round "1.6"]
[White "Drenthen, Abel"]
[Black "Leenen, Boyd"]
[Result "0-1"]
[ECO "C55"]
[WhiteElo "304"]
[BlackElo "618"]
[Annotator "NA"]
[PlyCount "98"]
[EventDate "2019.08.05"]
[EventType "swiss"]
[EventCountry "NED"]
[TimeControl "1500+10"]

1. e4 {[%emt 0:00:03]} e5 {[%emt 0:00:00]} 2. Nf3 {[%emt 0:00:10]} Nc6 {[%emt 0:00:02]} 3. Bc4 {[%emt 0:00:03]} h6 {[%emt 0:00:01]} 4. O-O {[%emt 0:00:12]} Nf6 {[%emt 0:00:16]} 5. Nc3 {[%emt 0:00:04]} a6 {[%emt 0:00:03]} 6. Re1 {[%emt 0:00:03]} b5 {[%emt 0:00:02]} 7. Bb3 {[%emt 0:00:02]} Bc5 {[%emt 0:00:03]} 8. d3 {[%emt 0:00:45]} d6 {[%emt 0:00:25]} 9. Be3 {[%emt 0:00:09]} Bb4 {[%emt 0:00:02]} 10. a3 {[%emt 0:00:17]} Bxc3 {[%emt 0:00:10]} 11. bxc3 {[%emt 0:00:02]} Be6 {[%emt 0:00:03]} 12. Bxe6 fxe6 13. c4 {[%emt 0:00:25]} bxc4 {[%emt 0:00:04]} 14. dxc4 {[%emt 0:00:01]} Nxe4 {[%emt 0:00:04]} 15. Bg5 {[%emt 0:00:08]} Nxg5 {[%emt 0:00:03]} 16. Nxg5 {[%emt 0:00:03]} Qxg5 {[%emt 0:00:04]} 17. h3 {[%emt 0:00:08]} Rf8 {[%emt 0:00:04]} 18. Re4 {[%emt 0:00:09]} Qf5 {[%emt 0:00:01]} 19. Qf3 {[%emt 0:00:59]} Qxf3 {[%emt 0:00:33]} 20. gxf3 {[%emt 0:00:01]} Rxf3 {[%emt 0:00:02]} 21. Kg2 {[%emt 0:00:19]} Rc3 {[%emt 0:00:11]} 22. Rc1 {[%emt 0:00:03]} Rxa3 {[%emt 0:00:02]} 23. Rg4 {[%emt 0:00:21]} g5 {[%emt 0:00:10]} 24. h4 {[%emt 0:00:06]} gxh4 {[%emt 0:00:03]} 25. Rxh4 {[%emt 0:00:01]} O-O-O {[%emt 0:00:05]} 26. Rh3 {[%emt 0:00:03]} Kd7 {[%emt 0:00:02]} 27. Rxh6 Ne7 {[%emt 0:00:08]} 28. Rh7 {[%emt 0:00:24]} Rc3 {[%emt 0:00:05]} 29. Rd1 Rxc4 {[%emt 0:00:19]} 30. Rg7 {[%emt 0:00:10]} Re8 {[%emt 0:00:06]} 31. Rc1 Rg8 {[%emt 0:00:08]} 32. Rxg8 {[%emt 0:00:07]} Nxg8 {[%emt 0:00:05]} 33. Rg1 {[%emt 0:00:50]} Rg4+ {[%emt 0:00:09]} 34. Kh2 {[%emt 0:00:08]} Rxg1 {[%emt 0:00:04]} 35. Kxg1 {[%emt 0:00:03]} Nf6 {[%emt 0:00:03]} 36. f3 {[%emt 0:00:05]} c5 {[%emt 0:00:02]} 37. c4 {[%emt 0:00:03]} a5 38. f4 {[%emt 0:00:39]} a4 {[%emt 0:00:27]} 39. fxe5 {[%emt 0:00:01]} dxe5 {[%emt 0:00:03]} 40. Kf1 {[%emt 0:00:02]} e4 {[%emt 0:00:01]} 41. Ke1 a3 {[%emt 0:00:02]} 42. Kd1 {[%emt 0:00:01]} e3 43. Kc1 {[%emt 0:00:02]} e2 44. Kd2 {[%emt 0:00:02]} a2 45. Kxe2 {[%emt 0:00:06]} a1=Q {[%emt 0:00:06]} 46. Kd3 {[%emt 0:01:08]} Qd4+ {[%emt 0:00:45]} 47. Kc2 {[%emt 0:00:03]} Ne4 {[%emt 0:00:02]} 48. Kb3 {[%emt 0:00:03]} Qc3+ {[%emt 0:00:02]} 49. Ka4 {[%emt 0:00:02]} Qb4# {[%emt 0:00:13]} 0-1

[Event "ONJK-FGH 2019"]
[Site "Borne"]
[Date "2019.08.05"]
[Round "2.1"]
[White "Deij, Casper"]
[Black "Vijver, Jonathan"]
[Result "0-1"]
[ECO "C55"]
[WhiteElo "538"]
[BlackElo "999"]
[Annotator "NA"]
[PlyCount "68"]
[EventDate "2019.08.05"]
[EventType "swiss"]
[EventCountry "NED"]
[SourceTitle "playchess.com"]
[Source "ChessBase"]
[SourceQuality "1"]
[TimeControl "1500+10"]

1. e4 {[%emt 0:00:00]} e5 {[%emt 0:00:00]} 2. Bc4 {[%emt 0:00:00]} Nf6 {[%emt 0:00:01]} 3. Nc3 {[%emt 0:00:00]} Nc6 {[%emt 0:00:10]} 4. Nf3 {[%emt 0:00:00]} Nxe4 {[%emt 0:00:07]} 5. Nxe4 {[%emt 0:00:01]} d5 {[%emt 0:00:09]} 6. Bxd5 {[%emt 0:00:03]} Qxd5 {[%emt 0:00:12]} 7. Nc3 {[%emt 0:00:04]} Qd8 {[%emt 0:00:07]} 8. O-O {[%emt 0:00:03]} Bc5 {[%emt 0:00:15]} 9. d3 {[%emt 0:00:07]} Bg4 {[%emt 0:00:23]} 10. Bg5 {[%emt 0:00:17]} Be7 {[%emt 0:00:14]} 11. Bxe7 {[%emt 0:00:03]} Qxe7 {[%emt 0:00:10]} 12. Re1 {[%emt 0:00:08]} Nd4 {[%emt 0:00:33]} 13. Re3 {[%emt 0:00:26]} Nxf3+ {[%emt 0:00:24]} 14. gxf3 {[%emt 0:00:05]} Bh3 {[%emt 0:00:06]} 15. f4 {[%emt 0:00:11]} O-O {[%emt 0:00:32]} 16. Rxh3 {[%emt 0:00:09]} Qd7 {[%emt 0:00:11]} 17. Qh5 {[%emt 0:00:26]} h6 {[%emt 0:00:09]} 18. Qxe5 {[%emt 0:00:21]} Qxh3 {[%emt 0:00:06]} 19. Qxc7 {[%emt 0:00:21]} Qg4+ {[%emt 0:00:13]} 20. Kf1 {[%emt 0:00:04]} Qf3 {[%emt 0:00:17]} 21. Re1 {[%emt 0:00:43]} Qh1+ {[%emt 0:00:14]} 22. Ke2 {[%emt 0:00:16]} Rfe8+ {[%emt 0:00:08]} 23. Ne4 {[%emt 0:00:18]} Qxh2 {[%emt 0:00:14]} 24. Kf3 {[%emt 0:01:12]} Qh5+ {[%emt 0:00:16]} 25. Kg3 {[%emt 0:00:34]} Re6 {[%emt 0:00:39]} 26. Kg2 {[%emt 0:00:45]} Rae8 {[%emt 0:00:59]} 27. Qxb7 {[%emt 0:00:16]} f5 {[%emt 0:00:29]} 28. Qd5 {[%emt 0:01:01]} Kh8 {[%emt 0:01:40]} 29. Rh1 {[%emt 0:01:02]} Qf7 {[%emt 0:00:00]} 30. Nd6 {[%emt 0:00:35]} Rg6+ {[%emt 0:00:00]} 31. Kf1 {[%emt 0:00:19]} Qxd5 {[%emt 0:00:07]} 32. Nxe8 {[%emt 0:00:07]} Qxh1+ {[%emt 0:00:05]} 33. Ke2 {[%emt 0:00:04]} Re6+ {[%emt 0:00:04]} 34. Kd2 {[%emt 0:00:12]} Qe1# {[%emt 0:00:07]} 0-1

[Event "ONJK-FGH 2019"]
[Site "Borne"]
[Date "2019.08.05"]
[Round "2.2"]
[White "Kurt, Sascha"]
[Black "Luzac, Tijmen"]
[Result "1/2-1/2"]
[ECO "B32"]
[WhiteElo "984"]
[BlackElo "516"]
[Annotator "NA"]
[PlyCount "116"]
[EventDate "2019.08.05"]
[EventType "swiss"]
[EventCountry "NED"]
[SourceTitle "playchess.com"]
[Source "ChessBase"]
[SourceQuality "1"]
[TimeControl "1500+10"]

1. e4 {[%emt 0:00:00]} c5 {[%emt 0:00:19]} 2. Nf3 {[%emt 0:00:00]} Nc6 {[%emt 0:00:24]} 3. d4 {[%emt 0:00:07]} b6 {[%emt 0:00:18]} 4. d5 {[%emt 0:00:19]} Na5 {[%emt 0:00:37]} 5. Nc3 {[%emt 0:00:18]} d6 {[%emt 0:00:20]} 6. Bb5+ {[%emt 0:00:39]} Bd7 {[%emt 0:00:32]} 7. Bxd7+ {[%emt 0:00:14]} Qxd7 {[%emt 0:00:17]} 8. O-O {[%emt 0:00:40]} Nf6 {[%emt 0:00:33]} 9. Bf4 {[%emt 0:00:50]} g6 {[%emt 0:01:06]} 10. Re1 {[%emt 0:00:44]} Bg7 {[%emt 0:00:24]} 11. e5 {[%emt 0:00:51]} Nh5 {[%emt 0:00:23]} 12. Bg5 {[%emt 0:01:23]} O-O {[%emt 0:00:29]} 13. exd6 {[%emt 0:00:19]} exd6 {[%emt 0:00:50]} 14. h3 {[%emt 0:02:35]} Rae8 {[%emt 0:01:25]} 15. Qd2 {[%emt 0:00:41]} Nc4 {[%emt 0:01:30]} 16. Qc1 {[%emt 0:01:02]} Rxe1+ {[%emt 0:00:43]} 17. Nxe1 {[%emt 0:00:55]} Qf5 {[%emt 0:00:44]} 18. Nf3 {[%emt 0:01:27]} f6 {[%emt 0:01:19]} 19. g4 {[%emt 0:00:56]} Qxf3 {[%emt 0:00:58]} 20. Bh6 {[%emt 0:00:55]} g5 {[%emt 0:01:51]} 21. Bxg7 {[%emt 0:00:40]} Nxg7 {[%emt 0:00:20]} 22. Nb5 {[%emt 0:00:52]} Qxd5 {[%emt 0:00:33]} 23. b3 {[%emt 0:00:23]} Nd2 {[%emt 0:00:24]} 24. Qd1 {[%emt 0:01:30]} Nf3+ {[%emt 0:00:29]} 25. Kf1 {[%emt 0:00:16]} Qxd1+ {[%emt 0:00:44]} 26. Rxd1 {[%emt 0:00:04]} Ne5 {[%emt 0:01:05]} 27. Rxd6 {[%emt 0:00:19]} Ra8 {[%emt 0:00:36]} 28. Rxf6 {[%emt 0:00:18]} Nd7 {[%emt 0:00:11]} 29. Rd6 {[%emt 0:00:32]} Nf8 {[%emt 0:00:10]} 30. Kg2 {[%emt 0:00:14]} Nfe6 {[%emt 0:00:06]} 31. Rd7 {[%emt 0:00:36]} Nd4 {[%emt 0:00:06]} 32. Nxd4 {[%emt 0:00:12]} cxd4 {[%emt 0:00:02]} 33. Rxd4 {[%emt 0:00:01]} Rc8 {[%emt 0:00:01]} 34. c4 {[%emt 0:00:04]} Ne6 {[%emt 0:00:17]} 35. Rd7 {[%emt 0:00:47]} Nf4+ {[%emt 0:00:05]} 36. Kg3 {[%emt 0:00:07]} Ne2+ {[%emt 0:00:05]} 37. Kf3 {[%emt 0:00:08]} Nf4 {[%emt 0:00:25]} 38. Rxa7 {[%emt 0:00:20]} Nxh3 {[%emt 0:00:15]} 39. Ra6 {[%emt 0:00:08]} Rf8+ {[%emt 0:00:05]} 40. Kg3 {[%emt 0:00:06]} Nxf2 {[%emt 0:00:04]} 41. Rxb6 {[%emt 0:00:07]} Ne4+ {[%emt 0:00:08]} 42. Kg2 {[%emt 0:00:05]} Rf2+ {[%emt 0:00:22]} 43. Kg1 {[%emt 0:00:07]} Rxa2 {[%emt 0:00:03]} 44. Rb8+ {[%emt 0:00:03]} Kf7 {[%emt 0:00:03]} 45. Rb7+ {[%emt 0:00:02]} Ke6 {[%emt 0:00:03]} 46. Rb6+ {[%emt 0:00:02]} Ke5 {[%emt 0:00:10]} 47. Rb5+ {[%emt 0:00:13]} Kd4 {[%emt 0:00:03]} 48. Rf5 {[%emt 0:00:20]} Ra1+ {[%emt 0:00:07]} 49. Rf1 {[%emt 0:00:02]} Ra3 {[%emt 0:00:08]} 50. Rd1+ {[%emt 0:00:01]} Kc3 {[%emt 0:00:05]} 51. Rc1+ {[%emt 0:00:18]} Kb4 {[%emt 0:00:02]} 52. Kg2 {[%emt 0:00:15]} Rxb3 {[%emt 0:00:06]} 53. Re1 {[%emt 0:00:06]} Rb2+ {[%emt 0:00:03]} 54. Kf3 {[%emt 0:00:03]} Nf2 {[%emt 0:00:10]} 55. Re5 {[%emt 0:00:30]} Kxc4 {[%emt 0:00:07]} 56. Rxg5 {[%emt 0:00:01]} Nd3 {[%emt 0:00:12]} 57. Rh5 {[%emt 0:00:06]} Rf2+ {[%emt 0:00:06]} 58. Kg3 {[%emt 0:00:06]} Rf7 {[%emt 0:00:05]} 1/2-1/2